bitfinex/quotes_ETHUSD_20230111
["timestamp","ask_amount","ask_price","bid_price","bid_amount"]
[1673399421145,35.16410176,1341.7,1341.3,3.81598184]
[1673399421955,35.16410176,1341.7,1341.3,3.81259378]
[1673399422525,35.16410176,1341.7,1341.3,6.58726053]
[1673399422842,18.42462018,1341.6,1341.3,3.90559378]
[1673399423054,14.90821,1341.6,1341.3,3.81259378]
[1673399424956,29.43430954,1341.7,1341.3,11.26796378]
[1673399425294,36.82275176,1341.7,1341.3,6.68026053]
[1673399425840,36.82275176,1341.7,1341.3,3.90559378]
[1673399426053,3.68227518,1341.6,1341.3,3.81259378]
[1673399426273,7.45434,1341.5,1341.3,0.01493314]
[1673399429476,22.42755778,1341.6,1341.3,0.01493314]
[1673399429834,19.9957,1341.7,1341.4,3.79766064]
[1673399429835,18.40289778,1341.7,1341.4,3.79766064]
[1673399429994,25.79101,1341.7,1341.4,3.79766064]
[1673399430204,33.24432,1341.7,1341.4,3.79766064]
[1673399430481,40.69763,1341.7,1341.4,3.79766064]
[1673399432626,40.69763,1341.7,1341.5,3.79766064]
[1673399432627,25.79108,1341.7,1341.5,3.79766064]
[1673399433083,30.64479,1341.7,1341.5,3.79766064]
[1673399435577,15.73803,1341.7,1341.5,3.79766064]
[1673399436462,8.2848,1341.7,1341.5,3.79766064]
[1673399437681,15.73806,1341.7,1341.5,3.79766064]
[1673399441235,14.62833835,1341.7,1341.5,5.12523454]
[1673399441497,14.62833835,1341.7,1341.5,5.21823454]
[1673399442073,0.06519778,1341.8,1341.6,3.79766064]
[1673399442323,17.82377,1341.9,1341.6,3.79766064]
[1673399443269,25.27589,1341.9,1341.6,6.57169013]
[1673399443463,17.82352,1341.9,1341.6,5.66795163]
[1673399444310,25.27564,1341.9,1341.6,5.66795163]
[1673399444522,23.9965189,1341.9,1341.6,5.66795163]
[1673399444728,16.5443989,1341.9,1341.6,5.66795163]
[1673399445073,8.07099778,1342.0,1341.7,3.79766064]
[1673399445284,8.0058,1342.0,1341.8,4.1774267]
[1673399446117,8.0058,1342.0,1341.8,11.6299667]
[1673399446331,8.0058,1342.0,1341.8,4.2704267]
[1673399446491,8.0058,1342.0,1341.8,4.1774267]
[1673399447379,7.51624779,1342.1,1341.9,3.79766064]
[1673399447542,14.90227001,1342.1,1341.9,3.79766064]
[1673399449851,1e-08,1342.1,1341.9,3.79766064]
[1673399450224,1e-08,1342.1,1341.9,4.22470331]
[1673399450409,9.45101001,1342.1,1341.9,4.22470331]
[1673399450584,7.45101001,1342.1,1341.9,4.22470331]
[1673399451066,1e-08,1342.1,1341.9,4.22470331]
[1673399451235,1e-08,1342.1,1342.0,0.42247033]
[1673399451650,7.45100001,1342.1,1342.0,0.42247033]
[1673399451860,7.45100001,1342.1,1342.0,1.50447033]
[1673399452312,7.45100001,1342.1,1342.0,0.42247033]
[1673399452819,7.45100001,1342.1,1342.0,4.22013097]
[1673399453013,1e-08,1342.1,1342.0,4.22013097]
[1673399454768,0.00200001,1342.1,1342.0,4.22013097]
[1673399454982,1e-08,1342.1,1342.0,4.22013097]
[1673399459554,1e-08,1342.1,1342.0,3.79766064]
[1673399461669,7.45100001,1342.1,1342.0,3.79766064]
[1673399462444,22.37160405,1342.1,1341.9,0.093]
[1673399462600,22.37160405,1342.1,1341.8,9.7083]
[1673399462932,22.37160405,1342.1,1341.8,13.50596064]
[1673399463137,14.90424,1341.9,1341.8,13.50596064]
[1673399463380,14.90424,1341.9,1341.8,3.89066064]
[1673399463381,7.45212,1341.9,1341.8,3.89066064]
[1673399463703,7.45212,1341.9,1341.8,3.79766064]
[1673399464082,7.45212,1341.9,1341.7,8.3085]
[1673399464315,7.45212,1341.9,1341.7,12.10616064]
[1673399464507,7.45212,1341.9,1341.7,3.89066064]
[1673399464714,7.45212,1341.9,1341.7,3.79766064]
[1673399465058,17.34636378,1341.9,1341.7,3.79766064]
[1673399465276,9.89424378,1341.9,1341.7,3.79766064]
[1673399465922,9.89424378,1341.9,1341.7,3.79394612]
[1673399466492,7.45212,1341.9,1341.7,3.79394612]
[1673399466741,14.96913778,1342.0,1341.7,3.79394612]
[1673399466926,22.35592,1342.0,1341.7,3.79394612]
[1673399470097,14.90382,1342.0,1341.7,3.79394612]
[1673399472267,22.3558,1342.0,1341.7,3.79394612]
[1673399473109,14.90382,1342.0,1341.7,3.79394612]
[1673399473319,14.90382,1342.0,1341.7,6.82846473]
[1673399473582,14.90382,1342.0,1341.7,6.92146473]
[1673399473949,7.45184,1342.0,1341.7,6.92146473]
[1673399474621,14.9034,1342.0,1341.7,6.92146473]
[1673399474843,14.9034,1342.0,1341.7,3.88694612]
[1673399475048,14.9034,1342.0,1341.7,3.79394612]
[1673399475841,22.35496,1342.0,1341.7,3.79394612]
[1673399476107,14.90312,1342.0,1341.7,3.79394612]
[1673399476474,9.82680183,1342.1,1341.7,3.79394612]
[1673399476794,17.21263405,1342.1,1341.7,3.79394612]
[1673399477118,9.76160405,1342.1,1341.7,3.79394612]
[1673399477327,9.76160405,1342.1,1341.7,11.24698612]
[1673399477584,17.21278405,1342.1,1341.7,11.33998612]
[1673399478211,9.76160405,1342.1,1341.7,18.79335612]
[1673399478414,9.76160405,1342.1,1341.7,26.24658612]
[1673399478785,17.21265405,1342.1,1341.7,18.79335612]
[1673399479433,24.66370405,1342.1,1341.7,11.34012612]
[1673399479797,24.66370405,1342.1,1341.7,14.11389965]
[1673399480318,24.66370405,1342.1,1341.7,6.66071965]
[1673399480505,24.66370405,1342.1,1341.7,3.88694612]
[1673399480835,24.66370405,1342.1,1341.7,14.02086965]
[1673399480998,24.66370405,1342.1,1341.7,14.11386965]
[1673399481529,17.21487405,1342.1,1341.8,3.79766064]
[1673399481764,17.21287405,1342.1,1341.8,3.79766064]
[1673399481954,17.19427001,1342.1,1341.8,5.79766064]
[1673399482158,17.19427001,1342.1,1341.8,8.35896029]
[1673399482376,9.74300001,1342.1,1341.9,3.79766064]
[1673399482569,8.63362091,1342.1,1341.9,11.24955064]
[1673399482783,8.8719153,1342.2,1341.9,3.89066064]
[1673399482784,16.3225153,1342.2,1341.9,3.89066064]
[1673399482991,16.25731752,1342.2,1341.9,3.79766064]
[1673399483206,23.70776752,1342.2,1341.9,5.25225193]
[1673399483446,23.70776752,1342.2,1341.9,5.34525193]
[1673399483619,23.70776752,1342.2,1341.9,3.89066064]
[1673399483830,23.70776752,1342.2,1341.8,12.81177353]
[1673399483831,32.81821752,1342.2,1341.8,12.81177353]
[1673399484038,32.81821752,1342.2,1341.8,13.83566064]
[1673399486159,25.36761752,1342.2,1341.8,13.83566064]
[1673399487035,25.36761752,1342.2,1341.8,16.60943417]
[1673399487402,32.81806752,1342.2,1341.8,16.60943417]
[1673399487771,32.81806752,1342.2,1341.8,13.83566064]
[1673399489453,23.70761752,1342.2,1341.9,5.64665879]
[1673399489667,23.70761752,1342.2,1341.9,3.89066064]
[1673399489668,8.80671752,1342.2,1341.9,3.89066064]
[1673399490003,8.80671752,1342.2,1342.0,4.1867267]
[1673399491553,16.25728752,1342.2,1342.0,4.1867267]
[1673399491864,16.25728752,1342.2,1342.0,3.79766064]
[1673399492076,8.80671752,1342.2,1342.0,3.79766064]
[1673399492287,23.70806752,1342.2,1342.0,3.79766064]
[1673399492494,23.68064748,1342.2,1342.0,3.79766064]
[1673399492714,31.13148748,1342.2,1342.0,3.79766064]
[1673399493431,31.13148748,1342.2,1342.0,4.1867267]
[1673399494527,31.13148748,1342.2,1342.0,3.79766064]
[1673399494964,31.13148748,1342.2,1341.9,0.093]
[1673399495175,31.13148748,1342.2,1341.9,3.79766064]
[1673399495457,31.69048748,1342.2,1341.9,3.79766064]
[1673399495614,31.13148748,1342.2,1341.9,3.79766064]
[1673399497120,31.13348748,1342.2,1341.9,3.79766064]
[1673399497280,31.13348748,1342.2,1341.9,5.29224493]
[1673399497281,31.13148748,1342.2,1341.9,5.29224493]
[1673399497491,31.13148748,1342.2,1341.9,5.38524493]
[1673399498294,31.13148748,1342.2,1341.9,3.89066064]
[1673399498532,31.13148748,1342.2,1341.9,3.79766064]
[1673399501692,1.5,1342.1,1341.9,3.79766064]
[1673399501904,16.40262,1342.1,1341.9,3.79766064]
[1673399503696,23.85409,1342.1,1341.9,3.79766064]
[1673399504478,0.01860404,1342.0,1341.8,10.038]
[1673399504643,14.90424,1341.9,1341.8,0.093]
[1673399504852,7.45212,1341.9,1341.7,0.093]
[1673399505107,7.45212,1341.9,1341.7,3.79766064]
[1673399507283,7.45212,1341.9,1341.7,4.74248251]
[1673399507631,14.90424,1341.9,1341.7,4.74248251]
[1673399508016,22.35636,1341.9,1341.7,4.74248251]
[1673399508227,14.90424,1341.9,1341.7,4.74248251]
[1673399508443,7.45212,1341.9,1341.7,4.74248251]
[1673399509286,14.90424,1341.9,1341.7,4.74248251]
[1673399510877,7.53573182,1342.0,1341.8,3.79766064]
[1673399511259,14.92257404,1342.0,1341.8,3.79766064]
[1673399512265,14.96788778,1342.1,1341.8,3.79766064]
[1673399512436,7.45168,1342.0,1341.8,3.79766064]
[1673399512652,7.45168,1342.0,1341.8,4.39242712]
[1673399512878,14.90336,1342.0,1341.8,4.39242712]
[1673399513634,22.35504,1342.0,1341.7,0.093]
[1673399513792,22.35504,1342.0,1341.7,3.79766064]
[1673399515204,22.35504,1342.0,1341.7,3.79470754]
[1673399518830,14.90336,1342.0,1341.7,3.79470754]
[1673399520468,14.90336,1342.0,1341.8,3.79766064]
[1673399521542,14.90536,1342.0,1341.8,3.79766064]
[1673399521691,14.90336,1342.0,1341.8,3.79766064]
[1673399522779,22.35504,1342.0,1341.8,3.79766064]
[1673399523421,14.90336,1342.0,1341.8,3.79766064]
[1673399524521,14.90536,1342.0,1341.8,3.79766064]
[1673399524730,14.90336,1342.0,1341.8,3.79766064]
[1673399526047,14.90336,1342.0,1341.8,4.1867267]
[1673399527379,14.90336,1342.0,1341.8,3.79766064]
[1673399530544,22.35504,1342.0,1341.8,3.79766064]
[1673399530754,14.90336,1342.0,1341.8,3.79766064]
[1673399530962,22.35504,1342.0,1341.8,3.79766064]
[1673399531911,14.90336,1342.0,1341.8,3.79766064]
[1673399534252,19.02792818,1342.0,1341.7,0.093]
[1673399534462,36.07780818,1342.0,1341.5,18.98938228]
[1673399534665,36.07780818,1342.0,1341.6,5.64705197]
[1673399534867,36.07780818,1342.0,1341.6,0.093]
[1673399535108,36.07780818,1342.0,1341.5,20.65647518]
[1673399535314,25.96446082,1341.9,1341.6,1.8493076]
[1673399535935,18.51202082,1341.9,1341.6,1.8493076]
[1673399536356,18.51202082,1341.9,1341.6,2.96148988]
[1673399537416,18.51202082,1341.9,1341.7,0.83405499]
[1673399538995,11.05990082,1341.9,1341.7,0.83405499]
[1673399539644,9.95033445,1341.9,1341.7,0.83405499]
[1673399540390,18.90245445,1341.9,1341.7,0.83405499]
[1673399540601,26.35457445,1341.9,1341.7,0.83405499]
[1673399541233,23.78593571,1341.8,1341.7,0.83405499]
[1673399541446,23.78593571,1341.8,1341.5,22.78704292]
[1673399541447,25.44593571,1341.8,1341.5,22.78704292]
[1673399542385,25.44593571,1341.8,1341.6,0.80309578]
[1673399544350,1.5,1341.7,1341.6,0.80309578]
[1673399544537,16.40646,1341.7,1341.6,0.80309578]
[1673399544752,23.85969,1341.7,1341.6,0.80309578]
[1673399545284,28.23297135,1341.7,1341.6,0.80309578]
[1673399546277,28.23297135,1341.7,1341.4,1.11218228]
[1673399546483,28.23297135,1341.7,1341.4,3.79766064]
[1673399546872,26.73297135,1341.7,1341.4,4.90984292]
[1673399547218,24.03169,1341.7,1341.4,3.79766064]
[1673399547431,24.03169,1341.7,1341.5,0.77331689]
[1673399548336,24.03169,1341.7,1341.3,18.72171542]
[1673399548552,1.672,1341.7,1341.4,2.96177585]
[1673399548758,1.672,1341.7,1341.3,46.55228896]
[1673399548954,1.672,1341.7,1341.4,11.02416631]
[1673399548955,9.12526,1341.7,1341.4,11.02416631]
[1673399549167,14.90652,1341.7,1341.4,9.26764269]
[1673399549408,22.35978,1341.7,1341.5,0.77331689]
[1673399549832,24.03078,1341.7,1341.5,0.77331689]
[1673399550043,4.075078,1341.6,1341.5,0.77331689]
[1673399550269,4.075078,1341.6,1341.5,6.89e-06]
[1673399550270,31.826418,1341.6,1341.5,6.89e-06]
[1673399550589,31.826418,1341.6,1341.3,0.10793314]
[1673399550590,41.19412204,1341.6,1341.3,0.01493314]
[1673399550774,22.36467,1341.4,1341.3,0.01493314]
[1673399550988,25.70367,1341.4,1341.3,0.01493314]
[1673399551215,29.95822378,1341.4,1341.3,0.01493314]
[1673399551590,29.97682782,1341.4,1341.3,0.01493314]
[1673399552252,30.20682782,1341.4,1341.3,0.01493314]
[1673399552845,22.75193782,1341.4,1341.3,0.01493314]
[1673399553056,30.20682782,1341.4,1341.3,0.01493314]
[1673399557481,6.15155378,1341.4,1341.3,0.01493314]
[1673399557735,1.667,1341.4,1341.3,0.01493314]
[1673399558110,9.12189,1341.4,1341.3,0.01493314]
[1673399558353,16.57678,1341.4,1341.3,0.01493314]
[1673399558526,24.03167,1341.4,1341.3,0.01493314]
[1673399559377,24.82107,1341.4,1341.3,0.67672709]
[1673399559589,28.98737478,1341.4,1341.3,0.67672709]
[1673399559840,28.42797478,1341.4,1341.3,0.67672709]
[1673399560449,30.09997478,1341.4,1341.3,0.01493314]
[1673399560653,38.27457478,1341.4,1341.3,0.01493314]
[1673399561080,38.29317882,1341.4,1341.3,0.01493314]
[1673399563983,41.79317882,1341.4,1341.3,0.01493314]
[1673399564282,44.79317882,1341.4,1341.3,0.01493314]
[1673399564598,41.29317882,1341.4,1341.3,0.67672709]
[1673399565072,45.35257882,1341.4,1341.3,0.67672709]
[1673399565279,45.35257882,1341.4,1341.3,0.01493314]
[1673399565762,41.85257882,1341.4,1341.3,0.01493314]
[1673399567822,45.35257882,1341.4,1341.3,0.01493314]
[1673399568233,41.85257882,1341.4,1341.3,0.01493314]
[1673399569329,45.35257882,1341.4,1341.3,0.01493314]
[1673399569702,41.85257882,1341.4,1341.3,0.01493314]
[1673399570178,45.35257882,1341.4,1341.3,0.01493314]
[1673399571379,47.02457882,1341.4,1341.3,0.01201393]
[1673399572011,41.85257882,1341.4,1341.3,0.01201393]
[1673399578950,38.51357882,1341.4,1341.3,0.01201393]
[1673399579269,41.84557882,1341.4,1341.3,534.63607893]
[1673399579498,41.28617882,1341.4,1341.3,534.72907893]
[1673399579687,41.84557882,1341.4,1341.3,534.72907893]
[1673399580209,33.67097882,1341.4,1341.3,534.72907893]
[1673399581947,33.11157882,1341.4,1341.3,534.72907893]
[1673399583605,33.65237478,1341.4,1341.3,534.72907893]
[1673399583822,33.09297478,1341.4,1341.3,534.72907893]
[1673399584210,36.89063542,1341.4,1341.3,534.72907893]
[1673399584640,37.64275443,1341.4,1341.3,534.72907893]
[1673399588772,36.89063542,1341.4,1341.3,534.72907893]
[1673399591245,36.89063542,1341.4,1341.3,530.51148893]
[1673399593452,44.76363542,1341.4,1341.3,530.51148893]
[1673399593681,44.76363542,1341.4,1341.3,517.40004893]
[1673399593682,57.03004443,1341.4,1341.3,517.40004893]
[1673399593996,53.53004443,1341.4,1341.3,497.57789893]
[1673399594198,53.53004443,1341.4,1341.3,482.50730893]
[1673399594412,58.02304443,1341.4,1341.3,468.16574893]
[1673399594655,58.02304443,1341.4,1341.3,456.36775893]
[1673399594827,58.04164847,1341.4,1341.3,441.55040893]
[1673399595024,58.04164847,1341.4,1341.3,431.84684893]
[1673399595237,58.04164847,1341.4,1341.3,427.10467893]
[1673399595673,58.04164847,1341.4,1341.3,419.32089893]
[1673399595924,58.04164847,1341.4,1341.3,409.27680893]
[1673399596077,61.94877305,1341.4,1341.3,399.44634893]
[1673399596445,58.04164847,1341.4,1341.3,399.44634893]
[1673399597266,11.44117965,1341.4,1341.3,399.44634893]
[1673399597475,33.80584965,1341.4,1341.3,399.44634893]
[1673399597879,33.05373064,1341.4,1341.3,399.44634893]
[1673399598866,33.28373064,1341.4,1341.3,399.44634893]
[1673399600491,18.37395064,1341.4,1341.3,399.44634893]
[1673399600755,17.81455064,1341.4,1341.3,399.44634893]
[1673399600907,32.72433064,1341.4,1341.3,399.44634893]
[1673399602278,39.92419148,1341.4,1341.3,399.44634893]
[1673399608461,39.92419148,1341.4,1341.3,395.65723291]
[1673399608672,40.67631049,1341.4,1341.3,395.65723291]
[1673399609475,40.67631049,1341.4,1341.3,396.38095996]
[1673399611187,39.01631049,1341.4,1341.3,396.38095996]
[1673399614148,53.04431049,1341.4,1341.3,396.38095996]
[1673399614363,52.29219148,1341.4,1341.3,390.62116996]
[1673399614702,56.36253538,1341.4,1341.3,371.49515996]
[1673399614857,57.11465439,1341.4,1341.3,361.32180996]
[1673399615045,57.11465439,1341.4,1341.3,351.94465996]
[1673399615255,57.67405439,1341.4,1341.3,342.61210996]
[1673399615500,57.11465439,1341.4,1341.3,342.61210996]
[1673399615780,61.22399361,1341.4,1341.3,342.61210996]
[1673399616409,56.95143507,1341.4,1341.3,342.61210996]
[1673399620093,56.19931606,1341.4,1341.3,342.61210996]
[1673399620772,56.95143507,1341.4,1341.3,342.61210996]
[1673399625096,56.95143507,1341.4,1341.3,334.24466996]
[1673399625473,56.95143507,1341.4,1341.3,324.68030996]
[1673399625689,56.95143507,1341.4,1341.3,315.54125996]
[1673399627071,56.95343507,1341.4,1341.3,315.53925996]
[1673399627302,56.95143507,1341.4,1341.3,315.54125996]
[1673399630361,53.04431049,1341.4,1341.3,315.54125996]
[1673399630721,56.95364846,1341.4,1341.3,315.54125996]
[1673399632106,56.95364846,1341.4,1341.3,0.81672705]
[1673399632442,61.36668716,1341.4,1341.3,0.72372705]
[1673399635796,62.07124094,1341.4,1341.3,0.72372705]
[1673399635981,57.45734919,1341.4,1341.3,0.72372705]
[1673399636538,61.92591995,1341.4,1341.3,0.72372705]
[1673399636857,61.36651995,1341.4,1341.3,0.72372705]
[1673399638967,59.70451995,1341.4,1341.3,0.72372705]
[1673399639663,59.70495726,1341.4,1341.3,0.72372705]
[1673399639873,55.79534919,1341.4,1341.3,0.72372705]
[1673399640391,59.70493004,1341.4,1341.3,0.72372705]
[1673399641247,55.79534919,1341.4,1341.3,0.72372705]
[1673399641665,59.70526954,1341.4,1341.3,0.72372705]
[1673399641914,55.79534919,1341.4,1341.3,0.72372705]
[1673399642506,67.86413094,1341.4,1341.3,7.05e-06]
[1673399642864,67.86413094,1341.4,1341.2,0.01978951]
[1673399642865,60.40924094,1341.4,1341.2,0.01978951]
[1673399643036,73.03027429,1341.3,1341.2,0.01978951]
[1673399643480,73.7823933,1341.3,1341.2,0.01978951]
[1673399645502,73.7843933,1341.3,1341.2,0.01978951]
[1673399645831,73.7823933,1341.3,1341.2,0.01978951]
[1673399646351,73.80099734,1341.3,1341.2,0.01978951]
[1673399648130,65.49265778,1341.3,1341.2,0.01978951]
[1673399649300,69.40274964,1341.3,1341.2,0.01978951]
[1673399650046,65.49265778,1341.3,1341.2,0.01978951]
[1673399651372,69.40274964,1341.3,1341.2,0.01978951]
[1673399651785,65.49265778,1341.3,1341.2,0.01978951]
[1673399652254,69.40274964,1341.3,1341.2,0.01978951]
[1673399652452,65.49265778,1341.3,1341.2,0.01978951]
[1673399652624,64.74053877,1341.3,1341.2,0.01978951]
[1673399652845,65.49265778,1341.3,1341.2,0.01978951]
[1673399653416,69.40274964,1341.3,1341.2,0.01978951]
[1673399655364,73.80099734,1341.3,1341.2,0.01978951]
[1673399658436,69.89090548,1341.3,1341.2,0.01978951]
[1673399659509,74.50479723,1341.3,1341.2,0.01978951]
[1673399659680,74.50679723,1341.3,1341.2,0.01978951]
[1673399660036,81.83935548,1341.3,1341.2,9.51e-06]
[1673399660403,86.46098407,1341.3,1341.2,9.51e-06]
[1673399664293,79.60728637,1341.3,1341.2,9.51e-06]
[1673399664506,84.00553407,1341.3,1341.2,9.51e-06]
[1673399664751,79.38390548,1341.3,1341.2,9.51e-06]
[1673399664973,74.38390548,1341.3,1341.2,9.51e-06]
[1673399665152,78.29493521,1341.3,1341.2,9.51e-06]
[1673399666230,69.40368751,1341.3,1341.2,9.51e-06]
[1673399666454,61.30205374,1341.3,1341.2,9.51e-06]
[1673399666818,60.54993473,1341.3,1341.2,9.51e-06]
[1673399667403,53.34596446,1341.3,1341.2,9.51e-06]
[1673399667566,27.06858473,1341.3,1341.2,9.51e-06]
[1673399667915,41.97948473,1341.3,1341.2,9.51e-06]
[1673399668074,49.43493473,1341.3,1341.2,9.51e-06]
[1673399670889,34.52403473,1341.3,1341.2,9.51e-06]
[1673399672356,41.97948473,1341.3,1341.2,9.51e-06]
[1673399673074,34.52403473,1341.3,1341.2,9.51e-06]
[1673399673257,28.48311064,1341.3,1341.2,9.51e-06]
[1673399674317,24.68545,1341.3,1341.2,9.51e-06]
[1673399677452,17.23,1341.3,1341.2,9.51e-06]
[1673399677873,17.98211901,1341.3,1341.2,9.51e-06]
[1673399678133,25.43756901,1341.3,1341.2,9.51e-06]
[1673399682024,0.00201963,1341.2,1341.1,3.26178951]
[1673399683452,0.00201963,1341.2,1341.1,0.01978951]
[1673399684813,0.00201963,1341.2,1341.1,3.26178951]
[1673399685024,0.00201963,1341.2,1341.1,0.01978951]
[1673399687797,7.45801963,1341.2,1341.1,0.01978951]
[1673399688115,3.23201963,1341.2,1341.1,0.01978951]
[1673399688290,7.19194659,1341.2,1341.1,0.01978951]
[1673399688513,15.4000656,1341.2,1341.1,0.01978951]
[1673399688701,7.9440656,1341.2,1341.1,0.01978951]
[1673399690702,7.94175018,1341.2,1341.1,0.01978951]
[1673399691062,3.22970421,1341.2,1341.1,0.01978951]
[1673399700635,3.23,1341.2,1341.1,0.01978951]
[1673399701049,0.23,1341.2,1341.1,321.98225851]
[1673399701237,3.0,1341.3,1341.1,344.44493851]
[1673399701448,11.05939778,1341.4,1341.2,1.672]
[1673399701658,10.9942,1341.4,1341.3,7.45545]
[1673399701871,10.9942,1341.4,1341.3,5.612]
[1673399702080,3.0,1341.4,1341.3,5.612]
[1673399702939,3.0,1341.4,1341.3,0.093]
[1673399703122,3.0,1341.4,1341.2,9.22046]
[1673399704545,3.0,1341.4,1341.2,1.765]
[1673399704694,3.0,1341.4,1341.2,9.12788]
[1673399704900,3.0,1341.4,1341.2,24.13288]
[1673399705144,0.06519778,1341.5,1341.2,24.13288]
[1673399705380,3.0,1341.5,1341.2,24.13288]
[1673399705901,3.0,1341.5,1341.3,2.413288]
[1673399706221,3.0,1341.5,1341.3,14.91068]
[1673399706375,3.0,1341.5,1341.3,7.54823]
[1673399706955,3.0,1341.5,1341.3,0.093]
[1673399707290,3.0,1341.5,1341.2,9.22075]
[1673399708631,3.0,1341.5,1341.2,16.67675]
[1673399710679,3.0,1341.5,1341.2,9.22075]
[1673399711099,3.0,1341.5,1341.2,9.21814133]
[1673399711521,3.0,1341.5,1341.2,16.67414133]
[1673399711994,3.0,1341.5,1341.2,9.21814133]
[1673399712368,3.0,1341.5,1341.2,16.67414133]
[1673399713106,3.0,1341.5,1341.2,9.21814133]
[1673399714085,3.0,1341.5,1341.2,16.67414133]
[1673399714247,3.0,1341.5,1341.2,24.13014133]
[1673399714689,3.0,1341.5,1341.2,16.67414133]
[1673399715153,3.0,1341.5,1341.2,9.21814133]
[1673399715360,3.0,1341.5,1341.2,11.71814133]
[1673399715670,3.0,1341.5,1341.2,9.21814133]
[1673399717234,3.0,1341.5,1341.2,16.67414133]
[1673399717989,3.0,1341.5,1341.2,0.093]
[1673399717990,6.79766064,1341.5,1341.2,0.093]
[1673399718201,0.23,1341.4,1341.1,324.60235851]
[1673399718356,15.14025,1341.4,1341.1,324.60235851]
[1673399718629,15.91097305,1341.4,1341.1,324.60235851]
[1673399718825,18.9897202,1341.4,1341.1,324.60235851]
[1673399718996,26.4450102,1341.4,1341.1,324.60235851]
[1673399719222,26.4470102,1341.4,1341.1,324.60035851]
[1673399719548,26.4450102,1341.4,1341.1,324.60235851]
[1673399720367,18.9897202,1341.4,1341.1,324.60235851]
[1673399720910,15.91097305,1341.4,1341.1,324.60235851]
[1673399721302,15.91064305,1341.4,1341.1,324.60235851]
[1673399725027,15.15852404,1341.4,1341.1,324.60235851]
[1673399726023,22.61348404,1341.4,1341.1,324.60235851]
[1673399727823,22.61348404,1341.4,1341.1,314.88425851]
[1673399728176,26.38181919,1341.4,1341.1,314.88425851]
[1673399728972,27.1339382,1341.4,1341.1,314.88425851]
[1673399729179,30.93159884,1341.4,1341.1,314.88425851]
[1673399729432,3.0,1341.3,1341.1,314.88425851]
[1673399729605,0.23,1341.2,1341.1,314.88425851]
[1673399732151,0.23,1341.2,1341.1,314.88225851]
[1673399732152,0.232,1341.2,1341.1,314.88225851]
[1673399732374,0.23,1341.2,1341.1,314.88425851]
[1673399733590,7.686,1341.2,1341.1,314.88425851]
[1673399734640,7.686,1341.2,1341.1,314.88030392]
[1673399735744,0.23,1341.2,1341.1,314.88030392]
[1673399737477,7.686,1341.2,1341.1,314.88030392]
[1673399737841,0.23,1341.2,1341.1,314.88030392]
[1673399741615,7.686,1341.2,1341.1,314.88030392]
[1673399742356,0.23,1341.2,1341.1,314.88030392]
[1673399743532,7.686,1341.2,1341.1,314.88030392]
[1673399743693,0.23,1341.2,1341.1,314.88030392]
[1673399744464,0.23,1341.2,1341.1,315.70989217]
[1673399745370,3.06519778,1341.3,1341.1,339.75157217]
[1673399745371,3.0,1341.3,1341.1,339.75157217]
[1673399745586,17.97464778,1341.5,1341.2,6.129]
[1673399745820,17.90945,1341.5,1341.2,6.222]
[1673399746223,25.36433,1341.5,1341.2,6.222]
[1673399746436,29.16199064,1341.5,1341.2,2.6]
[1673399746694,29.72129064,1341.5,1341.2,0.23]
[1673399746845,14.9109,1341.3,1341.2,0.23]
[1673399747058,18.1409,1341.3,1341.2,0.23]
[1673399748579,18.1409,1341.3,1341.2,6.129]
[1673399748786,3.0,1341.3,1341.2,6.222]
[1673399749261,17.97574778,1341.4,1341.2,8.722]
[1673399749469,10.45522,1341.4,1341.2,8.722]
[1673399749797,10.45497,1341.4,1341.2,8.722]
[1673399750380,10.45497,1341.4,1341.2,6.222]
[1673399750537,17.90994,1341.4,1341.2,6.222]
[1673399750748,18.46934,1341.4,1341.2,6.222]
[1673399750969,11.01437,1341.4,1341.2,8.722]
[1673399751176,10.45497,1341.4,1341.2,0.323]
[1673399751372,25.36475,1341.4,1341.2,0.23]
[1673399751583,17.90978,1341.4,1341.2,0.23]
[1673399752247,25.36467,1341.4,1341.2,0.23]
[1673399752490,17.90978,1341.4,1341.2,0.23]
[1673399755393,0.23,1341.3,1341.2,0.23]
[1673399755594,22.59635,1341.3,1341.2,0.23]
[1673399755811,25.59635,1341.3,1341.2,0.23]
[1673399756358,25.59635,1341.3,1341.2,0.22694033]
[1673399772067,3.23,1341.3,1341.2,2.50394033]
[1673399772499,0.23,1341.3,1341.2,2.50394033]
[1673399772743,0.23,1341.3,1341.2,4.50394033]
[1673399772915,0.05,1341.4,1341.2,4.50394033]
[1673399773128,0.23,1341.4,1341.2,4.50394033]
[1673399773775,0.23,1341.4,1341.2,5.00394033]
[1673399773990,28.99291182,1341.5,1341.2,5.09694033]
[1673399774201,7.45507,1341.4,1341.2,2.59694033]
[1673399774427,14.91014,1341.4,1341.2,2.50394033]
[1673399774813,14.91014,1341.4,1341.2,4.50394033]
[1673399775011,14.91014,1341.4,1341.2,2.50394033]
[1673399776494,14.91014,1341.4,1341.2,5.00394033]
[1673399776717,14.91014,1341.4,1341.2,5.09694033]
[1673399779862,14.91014,1341.4,1341.2,2.59694033]
[1673399780086,14.91014,1341.4,1341.2,5.00394033]
[1673399780266,14.91014,1341.4,1341.2,5.09694033]
[1673399780482,14.91014,1341.4,1341.2,5.09468203]
[1673399781739,14.97436778,1341.5,1341.2,5.09468203]
[1673399782098,14.90917,1341.5,1341.2,5.09468203]
[1673399783143,15.46847,1341.5,1341.2,5.09468203]
[1673399783353,14.90917,1341.5,1341.2,5.09468203]
[1673399784158,22.3638,1341.5,1341.2,5.09468203]
[1673399785985,7.45434,1341.5,1341.2,5.09468203]
[1673399786202,8.01364,1341.5,1341.2,5.09468203]
[1673399786573,8.01364,1341.5,1341.3,2.0]
[1673399787217,8.20749778,1341.6,1341.4,3.344]
[1673399787439,8.1423,1341.6,1341.5,1.672]
[1673399787620,7.51867778,1341.7,1341.5,1.672]
[1673399787828,8.01278,1341.7,1341.5,1.672]
[1673399788679,15.46626,1341.7,1341.5,1.672]
[1673399790253,22.91974,1341.7,1341.5,1.672]
[1673399790463,22.91974,1341.7,1341.4,0.093]
[1673399790713,22.91974,1341.7,1341.4,2.76238]
[1673399790923,22.92174,1341.7,1341.4,2.76238]
[1673399791115,22.91974,1341.7,1341.4,2.76238]
[1673399791328,22.91974,1341.7,1341.4,4.41938]
[1673399791664,22.91974,1341.7,1341.4,2.76238]
[1673399792393,22.91974,1341.7,1341.3,27.6068]
[1673399794263,22.91974,1341.7,1341.3,22.5368]
[1673399794469,0.23,1341.6,1341.3,20.8818]
[1673399794782,22.36302,1341.5,1341.3,20.8818]